bitfinex/quotes_SOLUSD_20240926
["timestamp","ask_amount","ask_price","bid_price","bid_amount"]
[1727352121970,0.440459,153.36,153.35,7.82494032]
[1727352123174,0.440459,153.36,153.35,6.521]
[1727352123378,0.440459,153.36,153.34,6.5213]
[1727352124951,0.440459,153.36,153.35,13.08603251]
[1727352125158,61.3,153.38,153.37,6.5201]
[1727352126185,61.3,153.38,153.36,16.3009]
[1727352126416,61.3,153.38,153.32,16.3053]
[1727352126562,6.5209,153.36,153.31,6.5226]
[1727352126758,6.5218,153.34,153.29,22.8319]
[1727352127369,6.5218,153.34,153.29,35.91793251]
[1727352127769,61.3,153.38,153.3,7.82742247]
[1727352127962,6.5207,153.36,153.31,6.5226]
[1727352128285,6.5201,153.37,153.32,6.5221]
[1727352128680,6.5201,153.37,153.31,29.39223251]
[1727352128863,67.8198,153.38,153.33,19.60783251]
[1727352129062,67.8198,153.38,153.34,1.30408606]
[1727352130684,67.8198,153.38,153.33,13.08603251]
[1727352130987,67.8198,153.38,153.31,16.3062]
[1727352130988,67.8198,153.38,153.31,29.39223251]
[1727352132374,67.8198,153.38,153.33,6.5217]
[1727352133265,67.8198,153.38,153.31,16.3062]
[1727352133266,61.3,153.38,153.31,16.3062]
[1727352133592,61.3,153.38,153.31,22.8288]
[1727352133797,6.5207,153.36,153.31,22.8288]
[1727352133991,6.5207,153.36,153.31,16.3062]
[1727352134287,61.3,153.38,153.32,6.5222]
[1727352134484,6.5202,153.37,153.32,6.5222]
[1727352134887,6.5202,153.37,153.33,6.5216]
[1727352135089,67.8198,153.38,153.34,6.5213]
[1727352135392,6.5201,153.37,153.33,6.5218]
[1727352137791,61.3,153.38,153.31,16.3062]
[1727352138473,6.5212,153.35,153.31,22.8286]
[1727352138672,61.3,153.38,153.31,16.3062]
[1727352138886,6.5206,153.36,153.32,6.5222]
[1727352140293,6.521,153.35,153.31,22.8288]
[1727352141675,61.3,153.38,153.31,16.3062]
[1727352142093,6.521,153.35,153.31,22.8285]
[1727352142976,6.5207,153.36,153.32,6.5222]
[1727352146395,6.5211,153.35,153.31,22.8288]
[1727352149978,6.5206,153.36,153.33,6.5218]
[1727352150299,29.3451,153.36,153.32,6.5222]
[1727352150478,29.3451,153.36,153.3,13.08603251]
[1727352150479,22.8242,153.36,153.3,13.08603251]
[1727352150679,29.3448,153.36,153.33,16.3044]
[1727352151500,61.3,153.38,153.33,17.60873911]
[1727352151696,61.3,153.38,153.34,6.521]
[1727352151998,67.8199,153.38,153.33,22.8261]
[1727352155074,61.3,153.38,153.33,22.8261]
[1727352155280,6.5201,153.37,153.33,22.8261]
[1727352156690,67.8199,153.38,153.33,22.8261]
[1727352157284,6.5207,153.36,153.33,16.3044]
[1727352158088,6.5207,153.36,153.29,13.08603251]
[1727352158298,22.9653,153.36,153.26,20.0]
[1727352158492,22.9653,153.36,153.3,6.5231]
[1727352158493,6.5215,153.34,153.3,6.5231]
[1727352158825,39.2671,153.36,153.28,20.0]
[1727352158980,6.5215,153.34,153.29,6.5231]
[1727352159714,6.5215,153.34,153.3,6.5231]
[1727352160304,6.5215,153.34,153.29,6.5234]
[1727352160696,6.5223,153.32,153.28,22.8335]
[1727352162700,6.522,153.33,153.28,22.8335]
[1727352164106,6.5231,153.3,153.26,6.5247]
[1727352165302,16.3038,153.34,153.25,16.3124]
[1727352165614,6.5239,153.29,153.25,22.8375]
[1727352165798,6.524,153.28,153.25,16.3124]
[1727352166002,6.5252,153.25,153.24,0.257674]
[1727352166214,6.5251,153.26,153.24,0.257674]
[1727352166923,6.5252,153.25,153.24,0.257674]
[1727352168194,30.302084,153.25,153.24,0.257674]
[1727352168910,6.5252,153.25,153.24,0.257674]
[1727352169700,21.5526,153.26,153.19,6.542748]
[1727352169701,6.5258,153.24,153.19,6.542748]
[1727352170199,6.5258,153.24,153.2,6.5273]
[1727352170525,6.5254,153.25,153.2,6.5273]
[1727352170997,21.5526,153.26,153.2,13.08603251]
[1727352171197,28.0775,153.26,153.22,6.5264]
[1727352175510,6.5245,153.27,153.23,6.526]
[1727352178621,6.5252,153.26,153.22,16.3159]
[1727352178826,6.5252,153.26,153.22,22.8423]
[1727352180425,6.5244,153.27,153.23,6.526]
[1727352180999,6.524,153.28,153.24,6.5256]
[1727352181518,6.524,153.28,153.23,6.526]
[1727352181817,6.5236,153.29,153.25,6.5252]
[1727352182023,6.5241,153.28,153.22,16.3159]
[1727352182204,6.5245,153.27,153.23,6.5261]
[1727352183499,6.5241,153.28,153.24,6.5254]
[1727352183899,28.9226,153.3,153.26,6.5247]
[1727352184100,22.3992,153.3,153.24,16.3135]
[1727352184309,6.524,153.28,153.24,22.8391]
[1727352184500,6.5236,153.29,153.24,22.8391]
[1727352184826,6.524,153.28,153.24,22.8391]
[1727352185003,22.3992,153.3,153.24,16.3135]
[1727352185204,22.3992,153.3,153.27,6.5243]
[1727352185423,22.3992,153.3,153.26,22.8365]
[1727352186208,6.5236,153.29,153.26,16.3117]
[1727352186527,6.5236,153.29,153.24,6.5255]
[1727352187228,6.5241,153.28,153.24,6.5255]
[1727352190728,6.5247,153.27,153.23,22.8409]
[1727352190922,6.5241,153.28,153.24,6.5256]
[1727352191937,22.3992,153.3,153.25,17.61799465]
[1727352192831,28.9226,153.3,153.26,6.5247]
[1727352194031,0.242326,153.31,153.27,29.39613251]
[1727352194203,6.765126,153.31,153.27,22.8344]
[1727352194411,0.242326,153.31,153.28,19.60993251]
[1727352195604,0.242326,153.31,153.29,16.3086]
[1727352195807,0.242326,153.31,153.29,35.91793251]
[1727352196032,0.242326,153.31,153.29,35.91803251]
[1727352197629,0.242326,153.31,153.3,6.5231]
[1727352201334,0.242326,153.31,153.29,35.91813251]
[1727352201635,0.242326,153.31,153.29,22.8321]
[1727352202029,0.242326,153.31,153.3,6.5231]
[1727352202611,0.242326,153.31,153.29,16.3086]
[1727352202612,0.242326,153.31,153.29,22.832]
[1727352206611,0.242326,153.31,153.29,16.3086]
[1727352208028,0.242326,153.31,153.3,6.5231]
[1727352208228,0.242326,153.31,153.3,20.91371837]
[1727352208918,0.242326,153.31,153.3,40.91355901]
[1727352209118,0.242326,153.31,153.3,39.60913251]
[1727352210641,0.242326,153.31,153.3,40.91342543]
[1727352210936,0.242326,153.31,153.3,40.91342491]
[1727352211370,0.242326,153.31,153.3,40.91342582]
[1727352211637,0.242326,153.31,153.3,80.55180982]
[1727352212329,0.242326,153.31,153.3,79.24751651]
[1727352213521,0.242326,153.31,153.3,55.47063251]
[1727352214332,0.242326,153.31,153.3,79.24751651]
[1727352215231,0.242326,153.31,153.3,39.60913251]
[1727352215624,0.242326,153.31,153.3,26.5231]
[1727352215838,0.242326,153.31,153.3,39.60913251]
[1727352216928,0.242326,153.31,153.3,19.60913251]
[1727352217255,0.242326,153.31,153.28,13.08603251]
[1727352217548,0.242326,153.31,153.3,6.5231]
[1727352219148,0.242326,153.31,153.28,16.3097]
[1727352219450,0.242326,153.31,153.29,6.5234]
[1727352221530,0.242326,153.31,153.3,6.5231]
[1727352223538,0.242326,153.31,153.29,6.5234]
[1727352224955,0.242326,153.31,153.3,7.82768002]
[1727352225158,0.242326,153.31,153.3,6.5231]
[1727352225450,0.242326,153.31,153.3,19.60913251]
[1727352228029,0.242326,153.31,153.3,43.38601651]
[1727352228532,0.242326,153.31,153.3,19.60913251]
[1727352229342,0.242326,153.31,153.3,6.5231]
[1727352229558,0.242326,153.31,153.3,19.60913251]
[1727352236467,0.242326,153.31,153.3,6.5231]
[1727352239965,0.242326,153.31,153.27,6.5243]
[1727352239966,6.765326,153.31,153.27,6.5243]
[1727352240157,0.242326,153.31,153.25,13.08603251]
[1727352240354,0.242326,153.31,153.28,6.5239]
[1727352242159,6.765426,153.31,153.27,16.3107]
[1727352242473,6.765426,153.31,153.26,6.5247]
[1727352242474,6.5233,153.3,153.26,6.5247]
[1727352243160,0.242326,153.31,153.24,48.9414]
[1727352243351,6.4852,153.3,153.21,29.40283251]
[1727352243556,6.5241,153.28,153.23,6.5258]
[1727352243770,6.4852,153.3,153.21,29.40283251]
[1727352243771,6.4852,153.3,153.21,13.08603251]
[1727352244071,6.5238,153.29,153.24,6.5254]
[1727352244282,6.4852,153.3,153.24,6.5254]
[1727352244448,6.5241,153.28,153.24,6.5254]
[1727352244764,6.5241,153.28,153.21,13.08603251]
[1727352244765,6.5265,153.23,153.15,6.787922]
[1727352244954,16.3116,153.27,153.18,6.5281]
[1727352244955,6.2143,153.24,153.18,6.5281]
[1727352245154,6.5262,153.23,153.18,6.5281]
[1727352245360,6.5262,153.23,153.19,6.5277]
[1727352245560,6.2143,153.24,153.19,6.5277]
[1727352245878,12.7403,153.24,153.19,6.5277]
[1727352247177,6.2143,153.24,153.2,6.527]
[1727352247354,6.2143,153.24,153.21,6.5268]
[1727352247866,6.2143,153.24,153.19,16.3188]
[1727352248067,6.2143,153.24,153.22,6.5263]
[1727352248570,6.2143,153.24,153.21,16.3168]
[1727352248743,6.2143,153.24,153.21,22.8437]
[1727352249967,6.2143,153.24,153.21,16.3168]
[1727352251070,12.7424,153.28,153.23,6.5258]
[1727352251272,6.5244,153.27,153.23,6.5258]
[1727352259760,6.218,153.28,153.25,6.5251]
[1727352259961,6.218,153.28,153.23,16.315]
[1727352259962,12.742,153.28,153.24,6.5256]
[1727352260896,12.742,153.28,153.16,38.9571]
[1727352260897,6.218,153.28,153.12,39.254485]
[1727352261060,6.218,153.28,153.17,6.5283]
[1727352261061,6.5268,153.22,153.17,6.5283]
[1727352261262,6.5268,153.22,153.18,6.528]
[1727352261483,15.9918,153.24,153.18,6.528]
[1727352261693,6.5262,153.23,153.18,6.528]
[1727352262065,6.5262,153.23,153.19,6.5277]
[1727352263772,6.5262,153.23,153.18,6.5281]
[1727352263972,6.5262,153.23,153.19,6.5277]
[1727352265990,22.5175,153.24,153.19,6.5277]
[1727352266377,12.9316,153.23,153.18,6.5281]
[1727352266571,12.9316,153.23,153.19,6.5277]
[1727352267197,6.5268,153.22,153.17,22.8496]
[1727352267394,6.5268,153.22,153.18,6.5281]
[1727352268484,12.9318,153.23,153.18,6.5281]
[1727352269586,12.9318,153.23,153.17,16.3211]
[1727352269788,12.9318,153.23,153.19,6.5277]
[1727352270382,6.4054,153.23,153.2,6.5271]
[1727352270576,12.9315,153.23,153.19,22.8465]
[1727352273305,6.5267,153.22,153.18,6.5282]
[1727352275878,12.9318,153.23,153.19,6.5278]
[1727352276207,6.5265,153.22,153.18,22.8484]
[1727352279800,12.9318,153.23,153.19,6.5277]
[1727352280002,6.5266,153.22,153.18,22.8482]
[1727352281207,6.527,153.21,153.17,6.5286]
[1727352281416,6.5278,153.19,153.15,23.125322]
[1727352282393,6.5276,153.2,153.16,6.529]
[1727352283313,6.5276,153.2,153.15,16.596022]
[1727352283314,19.2485,153.23,153.15,23.125322]
[1727352284409,6.5275,153.2,153.16,6.529]
[1727352286512,6.5271,153.21,153.17,6.5286]
[1727352287017,6.5274,153.2,153.16,6.5289]
[1727352288401,19.2485,153.23,153.15,16.596022]
[1727352288612,6.5281,153.19,153.15,23.125422]
[1727352291819,6.5284,153.18,153.15,0.273022]
[1727352294301,6.5287,153.17,153.15,0.273022]
[1727352296323,16.3176,153.21,153.15,0.273022]
[1727352296626,6.5283,153.18,153.15,0.273022]
[1727352299101,6.5283,153.18,153.15,6.802522]
[1727352299598,6.5283,153.18,153.15,0.273022]
[1727352300526,6.5291,153.16,153.15,0.273022]
[1727352312533,56.5291,153.16,153.15,0.273022]
[1727352314016,56.5291,153.16,153.15,0.02556467]
[1727352314316,6.5303,153.13,153.12,0.182785]
[1727352314522,6.5312,153.11,153.1,0.257674]
[1727352318122,56.7992495,153.12,153.04,0.3666945]
[1727352318123,50.0,153.1,153.04,0.3666945]
[1727352318450,6.5337,153.06,153.04,0.3666945]
[1727352319143,6.5338,153.05,153.04,0.3666945]
[1727352337936,59.59021124,153.06,153.01,0.3314385]
[1727352337937,50.0,153.03,153.01,0.3314385]
[1727352338232,6.5376,152.96,152.94,15.3918]
[1727352338543,6.5376,152.96,152.91,6.5397]
[1727352340058,6.5376,152.96,152.9,38.5698]
[1727352341166,6.5376,152.96,152.9,15.5609]
[1727352344464,6.5376,152.96,152.9,22.1008]
[1727352345955,6.5376,152.96,152.9,15.5609]
[1727352355958,6.5376,152.96,152.87,28.9302]
[1727352359150,6.5376,152.96,152.87,22.3889]
[1727352359482,6.5389,152.93,152.87,6.036]
[1727352360281,6.5389,152.93,152.88,6.541]
[1727352360451,6.5389,152.93,152.87,25.66333251]
[1727352360863,6.5389,152.93,152.88,6.541]
[1727352361063,16.3452,152.95,152.88,6.541]
[1727352361252,16.3452,152.95,152.92,0.0737645]
[1727352361253,6.5389,152.93,152.92,0.0737645]
[1727352368785,16.3452,152.95,152.92,0.0737645]
[1727352368786,6.5383,152.95,152.92,0.0737645]
[1727352369026,13.32202908,152.96,152.92,6.6127645]
[1727352369189,6.5377,152.96,152.92,6.6127645]
[1727352369780,56.79302757,153.0,152.92,0.0737645]
[1727352369781,6.5389,152.93,152.92,0.0737645]
[1727352371775,6.5385,152.94,152.92,0.0737645]
[1727352372488,6.5381,152.95,152.92,0.0737645]
[1727352373767,16.3434,152.97,152.92,0.0737645]
[1727352373968,6.5387,152.94,152.92,0.0737645]
[1727352375195,42.76372757,153.0,152.92,0.0737645]
[1727352375495,6.5372,152.97,152.93,6.5388]
[1727352375787,6.5372,152.97,152.92,13.0811645]
[1727352376096,6.5377,152.96,152.92,13.0811645]
[1727352377478,23.13372757,153.0,152.92,6.5419645]
[1727352377683,6.5381,152.95,152.92,6.5419645]
[1727352378172,23.13372757,153.0,152.92,6.5419645]
[1727352378374,6.5377,152.96,152.92,13.0811645]
[1727352379273,23.13372757,153.0,152.92,6.5419645]
[1727352379591,6.5371,152.98,152.94,6.5384]
[1727352380171,6.5373,152.97,152.93,22.8858]
[1727352382190,16.3407,153.0,152.92,6.5419645]
[1727352382191,6.5384,152.95,152.92,6.5419645]
[1727352382487,16.3407,153.0,152.92,6.5419645]
[1727352382890,6.5379,152.96,152.92,6.5419645]
[1727352383484,6.5379,152.96,152.92,13.0811645]
[1727352384097,6.5381,152.95,152.92,6.5419645]
[1727352384478,16.3407,153.0,152.92,6.5419645]
[1727352384479,6.5378,152.96,152.92,6.5419645]
[1727352385086,6.538,152.95,152.92,6.5419645]
[1727352385393,6.5386,152.94,152.92,6.5419645]
[1727352385577,6.5386,152.94,152.92,0.0737645]
[1727352386201,6.5389,152.93,152.92,0.0737645]
[1727352386798,6.5386,152.94,152.92,0.0737645]
[1727352388507,20.0,153.0,152.92,0.0737645]
[1727352389021,6.5381,152.95,152.92,0.0737645]
[1727352389303,6.5377,152.96,152.92,0.0737645]
[1727352391393,26.78649258,153.0,152.96,6.5375]
[1727352391394,13.32249258,153.0,152.96,6.5375]
[1727352391598,16.3362,153.04,152.96,32.9168]
[1727352391904,6.5362,153.0,152.96,46.00283251]
[1727352392206,6.5362,153.0,152.96,52.54043251]
[1727352392377,6.5354,153.02,152.97,6.5371]
[1727352392578,6.5339,153.05,153.01,6.5351]
[1727352393179,6.535,153.03,152.99,6.3187]
[1727352394186,50.0,153.07,152.99,6.3187]
[1727352394499,6.5345,153.04,152.99,12.8547]
[1727352395012,6.5348,153.03,152.99,6.3187]
[1727352395191,6.5352,153.02,152.99,6.3187]
[1727352396694,6.5355,153.01,152.97,22.8796]
[1727352397989,50.0,153.05,152.97,22.8796]
[1727352398188,6.5352,153.02,152.97,22.8796]
[1727352400715,6.5356,153.01,152.97,22.8796]
[1727352400906,6.5356,153.01,152.97,16.3425]
[1727352401212,6.5359,153.0,152.97,16.3425]
[1727352401597,6.5356,153.01,152.97,16.3425]
[1727352401794,6.5356,153.01,152.97,22.8796]
[1727352402001,50.0,153.05,152.97,22.8796]
[1727352402002,6.5351,153.02,152.98,6.5367]
[1727352402204,6.5355,153.01,152.97,22.8797]
[1727352402890,6.5355,153.01,152.97,16.3425]
[1727352403518,6.5355,153.01,152.97,22.8796]
[1727352405315,16.3338,153.06,152.98,13.08603251]
[1727352405812,6.5345,153.04,152.98,13.08603251]
[1727352406017,6.5345,153.04,153.0,6.5358]
[1727352407901,6.5345,153.04,152.99,16.3406]
[1727352408109,6.5345,153.04,152.99,35.96263251]
[1727352408820,6.5345,153.04,153.0,6.5359]
[1727352411724,6.5345,153.04,152.99,29.42663251]
[1727352411725,6.5345,153.04,152.99,35.96283251]
[1727352412026,66.3327,153.07,152.99,16.3406]
[1727352412228,6.5355,153.01,152.96,29.65903251]
[1727352412442,6.5355,153.01,152.97,6.537]
[1727352413508,16.3348,153.05,152.96,52.54003251]
[1727352413509,6.5362,153.0,152.96,52.54003251]
[1727352413822,6.5362,153.0,152.96,39.454]
[1727352414023,6.5364,152.99,152.96,16.573]
[1727352415613,50.0,153.02,152.94,16.0732]
[1727352415810,6.5372,152.98,152.94,16.0732]
[1727352417023,50.0,153.02,152.94,16.0732]
[1727352417333,6.5373,152.97,152.94,16.0732]
[1727352419220,6.5364,152.99,152.95,6.538]
[1727352420510,6.5364,152.99,152.94,22.6115]
[1727352420707,6.5364,152.99,152.95,6.538]
[1727352420912,6.5368,152.98,152.94,22.6113]
[1727352421112,6.5364,152.99,152.95,6.538]
[1727352421421,56.77314514,153.02,152.94,16.0732]
[1727352422627,6.5369,152.98,152.94,16.0732]
[1727352423321,6.5373,152.97,152.94,16.0732]
[1727352429143,6.5376,152.96,152.94,16.0732]
[1727352429845,6.538,152.95,152.93,0.2350009]
[1727352431635,6.5385,152.94,152.93,0.2350009]
[1727352436847,16.3435,152.97,152.93,0.2350009]
[1727352438551,6.5385,152.94,152.93,0.2350009]
[1727352441653,6.5381,152.95,152.93,0.2350009]
[1727352442035,23.1205385,153.0,152.93,0.2350009]
[1727352442253,6.5364,152.99,152.95,6.538]
[1727352442454,16.3374,153.03,152.96,13.08603251]
[1727352442756,16.3374,153.03,152.99,16.3406]
[1727352442757,6.5349,153.03,152.99,16.3406]
[1727352442933,0.0996334,153.05,152.99,16.3406]
[1727352442934,6.5351,153.02,152.99,16.3406]
[1727352443624,0.0996334,153.05,152.99,16.3406]
[1727352443823,6.5347,153.03,152.99,16.3406]
[1727352444080,0.0996334,153.05,152.99,16.3406]
[1727352444253,6.5352,153.02,152.99,16.3406]
[1727352444440,0.0996334,153.05,152.99,16.3406]
[1727352444753,0.0996334,153.05,153.0,13.08603251]
[1727352445053,0.0996334,153.05,153.02,13.08603251]
[1727352446028,0.0996334,153.05,153.02,19.62103251]
[1727352447639,0.0996334,153.05,153.04,19.62023251]
[1727352448249,0.0996334,153.05,153.04,27.49229806]
[1727352448765,0.0996334,153.05,153.04,42.58491276]
[1727352448964,0.0996334,153.05,153.04,41.27823251]
[1727352450457,0.0996334,153.05,153.04,28.1922]
[1727352452050,0.0996334,153.05,153.04,21.658]
[1727352453259,0.0996334,153.05,153.04,28.1922]
[1727352454148,0.0996334,153.05,153.04,21.658]
[1727352454473,0.0996334,153.05,153.04,15.0926]
[1727352454670,0.0996334,153.05,153.0,6.4638]
[1727352454885,6.6334334,153.05,153.01,6.5354]
[1727352455046,6.54211142,153.05,153.01,6.5354]
[1727352455248,6.54211142,153.05,153.0,45.3059]
[1727352455249,0.00831142,153.05,153.0,45.3059]
[1727352455450,6.54221142,153.05,153.0,45.3059]
[1727352455950,0.00831142,153.05,153.0,38.7701]
[1727352456147,6.5345,153.04,153.0,38.7701]
[1727352456451,6.5345,153.04,153.0,45.3059]
[1727352458355,6.44317802,153.04,153.0,32.3063]
[1727352459962,6.44317802,153.04,153.0,16.3393]
[1727352460867,0.00831142,153.05,152.96,22.6583]
[1727352461061,0.00831142,153.05,152.97,17.64966645]
[1727352461262,6.5343,153.04,152.97,17.64966645]
[1727352461463,0.00831142,153.05,153.02,6.5349]
[1727352461882,0.00831142,153.05,153.04,6.5342]
[1727352462179,0.00831142,153.05,153.04,7.84093613]
[1727352462348,0.2608698,153.1,153.09,6.5321]
[1727352462763,0.2608698,153.1,153.09,7.8383819]
[1727352463155,0.2608698,153.1,153.09,7.83838158]
[1727352464096,0.2608698,153.1,153.09,6.5321]
[1727352464261,0.2608698,153.1,153.09,7.83832405]
[1727352465362,0.2608698,153.1,153.09,6.5321]
[1727352465796,0.2608698,153.1,153.08,16.3307]
[1727352466086,0.2608698,153.1,153.08,22.8628]
[1727352471769,0.2608698,153.1,153.08,16.3307]
[1727352471968,0.2608698,153.1,153.09,6.5321]
[1727352473688,0.2608698,153.1,153.08,16.3307]
[1727352473873,0.2608698,153.1,153.08,22.863]
[1727352475077,0.2608698,153.1,153.08,16.3307]
[1727352476800,0.2608698,153.1,153.09,1.30626367]
[1727352477179,0.2608698,153.1,153.09,7.83836367]
[1727352478193,0.2608698,153.1,153.09,6.5321]
[1727352479395,0.2608698,153.1,153.08,36.85734497]
[1727352479698,0.2608698,153.1,153.08,22.863]
[1727352481769,0.2608698,153.1,153.08,16.3307]
[1727352481986,0.2608698,153.1,153.09,6.5321]
[1727352482782,0.2608698,153.1,153.09,19.66211972]
[1727352484194,0.2608698,153.1,153.09,36.82689076]
[1727352484697,0.2608698,153.14,153.12,6.5306]
[1727352484876,0.2608698,153.14,153.13,14.43593694]
[1727352485993,0.2608698,153.14,153.13,13.13001972]
[1727352486291,6.7910698,153.14,153.11,16.3276]
[1727352486497,6.5304,153.13,153.1,6.5315]
[1727352486793,6.5304,153.13,153.09,22.3905]
[1727352487173,6.5304,153.13,153.09,6.5319]
[1727352488769,6.7910698,153.14,153.1,7.83770481]
[1727352488972,6.7910698,153.14,153.1,1.30610481]
[1727352489494,6.7910698,153.14,153.1,7.83770481]
[1727352489699,6.7910698,153.14,153.11,1.30606886]
[1727352490367,0.2608698,153.14,153.11,1.30606886]
[1727352490566,0.2608698,153.14,153.12,6.5305]
[1727352490796,0.2608698,153.14,153.13,6.5303]
[1727352491376,0.2608698,153.14,153.12,6.5306]
[1727352492010,0.2608698,153.14,153.13,1.30587328]
[1727352492176,0.2608698,153.14,153.12,6.5306]
[1727352492992,0.2608698,153.14,153.1,36.84163758]
[1727352493196,6.7910698,153.14,153.1,22.8602]
[1727352493384,6.5304,153.13,153.1,16.3287]
[1727352494305,6.5309,153.12,153.08,6.5324]
[1727352494797,0.2608698,153.14,153.07,16.3317]
[1727352495000,6.5315,153.11,153.07,22.8642]
[1727352495208,6.5309,153.12,153.08,6.5324]
[1727352496100,6.5311,153.12,153.08,6.5325]
[1727352496402,0.2608698,153.14,153.07,16.3317]
[1727352496773,6.5326,153.08,153.04,22.8691]
[1727352497276,31.9622,153.13,153.01,37.9429]
[1727352497277,6.5331,153.07,153.01,37.9429]
[1727352497491,6.5331,153.07,153.02,6.5346]
[1727352497683,6.5331,153.07,153.03,6.5345]
[1727352498079,50.0,153.12,152.98,43.70020738]
[1727352498285,6.5338,153.05,153.01,6.5353]
[1727352498597,50.0,153.12,153.02,1.30683425]
[1727352498598,6.5334,153.06,153.02,1.30683425]
[1727352498800,50.0,153.12,153.03,7.84132712]
[1727352498801,6.533,153.07,153.03,7.84132712]
[1727352498983,6.533,153.07,153.03,1.30672712]
[1727352499376,6.533,153.07,153.02,6.535]
[1727352501184,6.533,153.07,153.03,6.5346]
[1727352501384,6.5324,153.09,153.04,7.840825]
[1727352501587,6.5324,153.09,153.02,16.337]
[1727352501907,6.5324,153.09,153.04,6.5341]
[1727352502405,16.3274,153.12,153.03,6.5345]
[1727352503404,6.5331,153.07,153.03,6.5345]
[1727352504498,16.3274,153.12,153.04,17.64175934]
[1727352504701,16.3274,153.12,153.04,16.3351]
[1727352504908,6.5329,153.07,153.04,16.3351]
[1727352507696,6.5329,153.07,153.03,6.5343]
[1727352508106,6.5335,153.06,153.02,6.5349]
[1727352508417,16.3315,153.08,153.01,16.3381]
[1727352508588,16.3315,153.08,153.01,22.8736]
[1727352508589,6.5339,153.05,153.01,22.8736]
[1727352509210,6.5335,153.06,153.01,22.8736]
[1727352511204,6.5338,153.05,153.01,22.8736]
[1727352512594,16.3315,153.08,153.01,16.3381]
[1727352512595,6.5342,153.04,153.01,16.3381]
[1727352514024,6.5339,153.05,153.01,16.3381]
[1727352514322,6.5339,153.05,153.01,22.8736]
[1727352514523,6.5343,153.04,152.98,16.6027698]
[1727352514738,6.5343,153.04,153.0,6.5358]
[1727352516200,31.5788,153.08,152.98,16.6027698]
[1727352516500,6.5347,153.03,152.99,6.5362]
[1727352517222,6.3449,153.07,152.98,16.6027698]
[1727352517401,6.5343,153.04,153.0,6.5358]
[1727352518622,6.5347,153.03,152.99,6.5362]
[1727352519318,6.3449,153.07,153.0,17.64663685]
[1727352519621,6.5339,153.05,153.01,7.84229761]
[1727352519803,6.5339,153.05,153.01,6.5354]
[1727352520118,6.5337,153.06,153.02,6.5349]
[1727352520299,6.5338,153.05,153.01,6.5353]
[1727352520796,6.5335,153.06,153.02,6.535]
[1727352521012,21.7801,153.08,153.04,6.5341]
[1727352521902,21.7801,153.08,153.03,7.84120893]
[1727352522304,6.5331,153.07,153.03,7.84120893]
[1727352522511,6.5331,153.07,153.03,6.5345]
[1727352522911,6.5333,153.06,153.02,22.8718]
[1727352524314,15.2473,153.08,152.98,20.77380738]
[1727352524513,6.534,153.05,153.01,6.5355]
[1727352525513,6.5334,153.06,153.02,7.8415874]
[1727352525818,15.2473,153.08,153.02,7.8415874]
[1727352525819,15.2473,153.08,153.02,1.3068874]
[1727352527023,6.5332,153.07,153.03,6.5346]
[1727352527720,6.5332,153.07,153.04,1.30673179]
[1727352528934,6.5332,153.07,153.03,6.5346]
[1727352541646,15.2473,153.08,153.01,16.338]
[1727352541831,6.5353,153.02,152.98,23.1390698]
[1727352542130,6.4974,153.07,152.99,6.5362]
[1727352542131,6.5347,153.03,152.99,6.5362]
[1727352543412,16.6011,153.05,152.98,0.2608698]
[1727352543726,6.5361,153.0,152.98,0.2608698]
[1727352544718,6.5363,152.99,152.98,0.2608698]
[1727352545821,22.5075,152.99,152.98,0.2608698]
[1727352552215,6.5385,152.94,152.93,0.3346343]
[1727352553335,22.3248,152.94,152.93,0.3346343]
[1727352556131,72.3248,152.94,152.93,0.3346343]
[1727352558917,72.3248,152.94,152.89,0.2608698]